bitfinex-derivatives/quotes_SOLF0:USTF0_20250624
["timestamp","ask_amount","ask_price","bid_price","bid_amount"]
[1750731376217,47.0793,142.77,142.73,7.001]
[1750731376819,47.0793,142.77,142.74,7.0006]
[1750731377420,40.08,142.77,142.74,7.0006]
[1750731378618,40.08,142.77,142.7,3.52672105]
[1750731378823,40.08,142.77,142.72,3.52672105]
[1750731379125,46.878,142.8,142.73,2.4061]
[1750731379326,46.878,142.8,142.73,4.8171]
[1750731379917,46.878,142.8,142.76,6.9996]
[1750731380418,6.9981,142.79,142.76,6.9996]
[1750731380622,6.9981,142.79,142.75,6.9999]
[1750731382327,46.8778,142.8,142.76,6.9995]
[1750731384224,6.9982,142.79,142.76,6.9995]
[1750731385326,46.8778,142.8,142.76,6.9995]
[1750731385526,43.40672105,142.84,142.77,3.52672105]
[1750731385730,8.10417388,142.83,142.77,3.52672105]
[1750731385929,2.82048666,142.82,142.77,3.52672105]
[1750731386130,2.82048666,142.81,142.78,6.9985]
[1750731386331,6.9968,142.82,142.78,6.9985]
[1750731386525,2.82017266,142.81,142.78,6.9985]
[1750731386732,6.9968,142.82,142.78,6.9985]
[1750731386933,2.8199067,142.81,142.78,6.9985]
[1750731387132,6.9968,142.82,142.78,6.9985]
[1750731387328,2.82212426,142.81,142.78,6.9985]
[1750731387633,6.9968,142.82,142.78,6.9985]
[1750731387930,2.82223934,142.81,142.78,6.9985]
[1750731388130,6.9968,142.82,142.78,6.9985]
[1750731388426,2.82117701,142.81,142.78,6.9985]
[1750731388734,6.9963,142.83,142.79,6.9979]
[1750731388929,43.40672105,142.84,142.78,3.52672105]
[1750731388930,2.82138125,142.82,142.78,3.52672105]
[1750731389226,39.88,142.84,142.78,3.52672105]
[1750731389432,2.82140283,142.83,142.78,3.52672105]
[1750731389727,2.82140283,142.82,142.78,3.52672105]
[1750731389927,44.94121366,142.84,142.78,3.52672105]
[1750731390125,46.8758,142.84,142.78,3.52672105]
[1750731390425,2.82140843,142.83,142.78,3.52672105]
[1750731390625,46.8758,142.84,142.78,3.52672105]
[1750731390832,2.81994639,142.83,142.8,6.9973]
[1750731391033,2.82078492,142.82,142.8,6.9973]
[1750731391332,46.8758,142.84,142.8,6.9973]
[1750731391528,2.82145334,142.83,142.8,6.9973]
[1750731391729,46.8758,142.84,142.8,6.9973]
[1750731392032,2.82162716,142.83,142.8,6.9973]
[1750731392231,46.8758,142.84,142.8,6.9973]
[1750731392432,2.82169141,142.83,142.8,6.9973]
[1750731392630,46.8758,142.84,142.8,6.9973]
[1750731392830,2.82197584,142.83,142.78,3.52672105]
[1750731393132,46.8757,142.84,142.78,3.52672105]
[1750731393335,2.82409749,142.83,142.78,3.52672105]
[1750731393534,46.8757,142.84,142.8,6.9972]
[1750731393834,2.82438935,142.83,142.78,3.52672105]
[1750731394031,39.88,142.84,142.81,6.9968]
[1750731394233,2.82547718,142.83,142.81,6.9968]
[1750731394434,2.82547718,142.83,142.78,3.52672105]
[1750731394435,39.88,142.84,142.78,3.52672105]
[1750731394636,2.82656282,142.83,142.78,3.52672105]
[1750731394835,39.88,142.84,142.78,3.52672105]
[1750731395026,74.18672105,142.87,142.8,3.52672105]
[1750731395231,2.82527961,142.86,142.83,6.9959]
[1750731395537,2.82527961,142.85,142.83,6.9959]
[1750731395834,43.18672105,142.87,142.83,6.9959]
[1750731396036,2.82641439,142.86,142.83,6.9959]
[1750731396232,2.8267238,142.85,142.83,6.9959]
[1750731396432,43.18672105,142.87,142.83,6.9959]
[1750731396637,2.82724794,142.86,142.83,6.9959]
[1750731396834,2.82724794,142.85,142.83,6.9959]
[1750731397038,6.9947,142.86,142.83,6.9959]
[1750731397238,2.82777558,142.85,142.83,6.9959]
[1750731397439,6.9947,142.86,142.83,6.9959]
[1750731397641,2.82806782,142.85,142.83,6.9959]
[1750731397935,2.82806621,142.84,142.76,10.97077]
[1750731398139,3.52672105,142.85,142.76,2.2959]
[1750731398140,46.01478726,142.83,142.76,2.2959]
[1750731398344,43.18672105,142.83,142.77,6.9989]
[1750731398531,2.82840308,142.82,142.74,4.8259]
[1750731398835,3.52672105,142.79,142.7,43.18672105]
[1750731399141,3.52672105,142.77,142.68,17.02749105]
[1750731399441,3.52672105,142.77,142.68,8.35262105]
[1750731399637,3.52672105,142.75,142.7,7.0022]
[1750731399934,39.66,142.74,142.68,4.8259]
[1750731400742,39.66,142.74,142.7,7.0022]
[1750731401740,7.0011,142.73,142.7,7.0022]
[1750731401942,39.66,142.74,142.7,7.0022]
[1750731403540,39.66,142.74,142.68,4.8259]
[1750731403845,3.52672105,142.71,142.64,39.66]
[1750731404844,3.52672105,142.73,142.65,3.52672105]
[1750731405040,3.52672105,142.71,142.66,7.0043]
[1750731405240,39.66,142.7,142.63,5.92922105]
[1750731405848,46.6626,142.7,142.65,7.0049]
[1750731406349,46.6626,142.7,142.66,7.0042]
[1750731406554,39.66,142.7,142.66,7.0042]
[1750731407347,39.66,142.7,142.65,7.0049]
[1750731408148,46.6629,142.7,142.65,7.0049]
[1750731408350,39.66,142.7,142.65,7.0049]
[1750731408841,3.52672105,142.69,142.64,7.0054]
[1750731409248,3.52672105,142.69,142.61,44.4563]
[1750731409544,3.52672105,142.67,142.61,4.7963]
[1750731410053,3.52672105,142.67,142.61,2.3495]
[1750731410250,39.68,142.66,142.61,2.3495]
[1750731410748,39.68,142.66,142.61,5.87622105]
[1750731411253,39.68,142.66,142.63,7.0058]
[1750731411452,43.20672105,142.69,142.61,5.87622105]
[1750731412145,43.20672105,142.69,142.63,3.52672105]
[1750731412146,39.68,142.69,142.63,3.52672105]
[1750731412348,39.68,142.69,142.65,3.52672105]
[1750731412549,39.68,142.69,142.66,7.0041]
[1750731412741,39.68,142.69,142.65,3.52672105]
[1750731413754,39.68,142.69,142.67,7.0037]
[1750731414453,39.68,142.69,142.66,7.0043]
[1750731414652,39.68,142.69,142.65,3.52672105]
[1750731415351,39.68,142.69,142.66,7.0044]
[1750731415747,39.68,142.69,142.65,3.52672105]
[1750731416254,39.68,142.69,142.63,5.90052105]
[1750731417053,39.68,142.69,142.66,7.0042]
[1750731421258,46.6831,142.69,142.65,7.0048]
[1750731421653,39.68,142.69,142.63,2.3738]
[1750731422357,46.6832,142.69,142.65,7.0049]
[1750731422553,39.68,142.69,142.62,43.20672105]
[1750731422951,3.52672105,142.68,142.61,2.3495]
[1750731423557,7.0042,142.67,142.63,7.0056]
[1750731424054,3.52672105,142.68,142.61,2.3495]
[1750731424255,10.53052105,142.68,142.64,7.0051]
[1750731424560,3.52672105,142.68,142.61,5.87622105]
[1750731424761,10.53042105,142.68,142.64,7.0055]
[1750731425057,10.53042105,142.68,142.61,5.87622105]
[1750731425257,7.004,142.67,142.63,7.0057]
[1750731425461,3.52672105,142.68,142.61,2.3495]
[1750731426366,7.0049,142.66,142.62,7.0061]
[1750731427160,7.0053,142.65,142.61,7.0068]
[1750731427363,46.4853,142.65,142.61,7.0068]
[1750731427657,39.48,142.65,142.59,8.20192105]
[1750731427858,39.48,142.65,142.63,7.0057]
[1750731428058,39.48,142.65,142.59,8.20192105]
[1750731429061,39.48,142.65,142.63,7.0056]
[1750731429759,39.48,142.68,142.61,3.52672105]
[1750731429961,39.48,142.68,142.62,2.2808]
[1750731430258,39.48,142.68,142.63,3.52672105]
[1750731430959,39.48,142.68,142.66,7.0042]
[1750731432853,39.48,142.71,142.63,3.52672105]
[1750731433362,7.0026,142.7,142.63,3.52672105]
[1750731433565,39.48,142.71,142.67,7.004]
[1750731434465,46.4823,142.71,142.67,7.004]
[1750731435862,7.0026,142.7,142.66,7.0043]
[1750731436460,7.0026,142.7,142.67,7.0039]
[1750731437177,7.0036,142.68,142.62,2.2808]
[1750731437359,3.52672105,142.7,142.62,2.2808]
[1750731437558,3.52672105,142.66,142.58,3.52672105]
[1750731437764,46.465,142.65,142.61,7.0066]
[1750731438163,39.46,142.65,142.58,3.52672105]
[1750731438562,46.4653,142.65,142.61,7.0068]
[1750731439367,46.4653,142.65,142.59,2.2283]
[1750731439368,39.46,142.65,142.6,7.0073]
[1750731439869,7.006,142.63,142.59,7.0078]
[1750731440265,3.52672105,142.64,142.57,2.3047]
[1750731440769,3.52672105,142.62,142.55,3.52672105]
[1750731441166,10.53352105,142.62,142.57,7.0089]
[1750731441369,10.53352105,142.62,142.54,43.00672105]
[1750731441868,3.52672105,142.62,142.56,3.52672105]
[1750731442068,3.52672105,142.64,142.56,3.52672105]
[1750731442270,2.79718217,142.63,142.59,7.0076]
[1750731442472,7.0063,142.63,142.59,7.0076]
[1750731442670,3.52672105,142.6,142.52,2.2513]
[1750731442868,43.00672105,142.6,142.54,7.0102]
[1750731443068,7.0083,142.59,142.54,7.0102]
[1750731443869,7.0083,142.59,142.52,5.77802105]
[1750731444065,39.48,142.6,142.54,3.52672105]
[1750731444464,3.52672105,142.59,142.52,2.2513]
[1750731444677,3.52672105,142.59,142.52,5.77802105]
[1750731444870,39.48,142.6,142.52,5.77802105]
[1750731445178,2.80075147,142.59,142.52,2.2513]
[1750731445372,43.00672105,142.6,142.52,5.77802105]
[1750731445573,2.79672472,142.59,142.54,7.0101]
[1750731445874,43.00672105,142.6,142.52,5.77802105]
[1750731446272,43.00672105,142.6,142.52,2.2513]
[1750731446473,43.00672105,142.6,142.52,5.77802105]
[1750731446674,7.008,142.59,142.55,7.0096]
[1750731446874,43.00672105,142.6,142.52,2.2513]
[1750731447074,43.00672105,142.6,142.52,5.77802105]
[1750731447265,9.80526605,142.59,142.55,7.0095]
[1750731447470,7.0081,142.59,142.55,7.0095]
[1750731447682,50.01432105,142.6,142.56,7.0092]
[1750731447974,43.00672105,142.6,142.52,2.2513]
[1750731448279,3.52672105,142.57,142.52,7.0112]
[1750731448668,3.52672105,142.57,142.51,4.5437]
[1750731448874,3.52672105,142.57,142.53,7.0105]
[1750731449268,3.52672105,142.59,142.51,8.07042105]
[1750731449465,2.79238374,142.58,142.51,8.07042105]
[1750731449669,3.52672105,142.59,142.51,4.5437]
[1750731449866,7.0091,142.57,142.53,7.0104]
[1750731450272,39.48,142.56,142.49,41.8385]
[1750731450473,7.0102,142.55,142.49,41.8385]
[1750731450868,7.0101,142.55,142.51,7.0116]
[1750731451178,43.00672105,142.56,142.49,2.3585]
[1750731451972,50.01642105,142.56,142.52,7.0111]
[1750731452174,39.48,142.56,142.49,2.3585]
[1750731452479,39.48,142.56,142.53,7.0105]
[1750731452778,39.48,142.56,142.5,3.52672105]
[1750731452972,39.48,142.56,142.52,7.0111]
[1750731453171,39.48,142.56,142.5,3.52672105]
[1750731453577,39.48,142.56,142.53,7.0109]
[1750731454980,39.48,142.56,142.54,7.0102]
[1750731455777,39.48,142.56,142.53,7.0107]
[1750731456971,39.3,142.57,142.5,3.52672105]
[1750731457178,39.3,142.57,142.52,3.52672105]
[1750731460088,39.3,142.57,142.54,7.01]
[1750731461085,46.309,142.57,142.53,7.0107]
[1750731461789,7.0095,142.56,142.53,7.0107]
[1750731461989,7.0095,142.56,142.52,7.0113]
[1750731463084,39.3,142.57,142.53,7.0108]
[1750731463085,46.309,142.57,142.53,7.0108]
[1750731463881,7.0097,142.56,142.53,7.0108]
[1750731464092,42.82672105,142.57,142.51,7.0117]
[1750731464688,7.0102,142.55,142.49,2.3585]
[1750731465190,7.0102,142.55,142.51,7.0115]
[1750731465392,10.53632105,142.56,142.48,3.52672105]
[1750731465788,10.53632105,142.56,142.52,7.011]
[1750731466289,7.0099,142.55,142.52,7.011]
[1750731466490,3.52672105,142.56,142.52,7.011]
[1750731466679,42.82672105,142.57,142.53,7.0108]
[1750731467589,49.83582105,142.57,142.53,7.0108]
[1750731468685,39.3,142.57,142.54,7.0101]
[1750731470886,39.3,142.57,142.53,7.0107]
[1750731471594,46.3092,142.57,142.53,7.0107]
[1750731471990,39.3,142.57,142.53,7.0107]
[1750731472188,46.3091,142.57,142.53,7.0107]
[1750731473288,39.3,142.57,142.49,3.52672105]
[1750731473493,39.3,142.57,142.55,7.0098]
[1750731473792,39.3,142.57,142.49,3.52672105]
[1750731474187,46.3092,142.57,142.53,7.0105]
[1750731476194,46.3092,142.57,142.49,3.52672105]
[1750731477097,46.3092,142.57,142.47,44.0775]
[1750731477098,39.3,142.57,142.53,7.0108]
[1750731477492,39.3,142.57,142.5,3.52672105]
[1750731478197,46.309,142.57,142.53,7.0105]
[1750731478695,39.3,142.57,142.54,7.0103]
[1750731479897,39.3,142.57,142.55,7.0099]
[1750731480491,39.3,142.57,142.54,7.0102]
[1750731481096,39.3,142.57,142.55,7.0099]
[1750731481495,10.53512105,142.58,142.55,7.0099]
[1750731481697,42.07994739,142.57,142.55,7.0099]
[1750731481998,39.3,142.57,142.55,7.0099]
[1750731482698,39.3,142.57,142.53,7.0107]
[1750731482894,39.3,142.57,142.49,3.52672105]
[1750731483299,46.3092,142.57,142.53,7.0106]
[1750731483603,3.52672105,142.56,142.49,3.52672105]
[1750731483794,7.0099,142.55,142.49,3.52672105]
[1750731484098,3.52672105,142.56,142.49,3.52672105]
[1750731484288,7.0105,142.54,142.5,7.0121]
[1750731485703,39.12,142.53,142.5,7.0121]
[1750731486802,39.12,142.53,142.48,8.67487]
[1750731487397,39.12,142.53,142.5,7.012]
[1750731488901,39.12,142.53,142.51,7.0118]
[1750731489796,39.12,142.56,142.49,12.20159105]
[1750731490003,2.8043046,142.55,142.49,12.20159105]
[1750731490204,39.12,142.56,142.49,12.20159105]
[1750731490402,2.80446867,142.55,142.49,12.20159105]
[1750731490606,2.80446867,142.54,142.49,12.20159105]
[1750731490803,39.12,142.56,142.49,12.20159105]
[1750731490995,2.80537957,142.55,142.54,7.0104]
[1750731491603,39.12,142.56,142.55,7.0099]
[1750731491808,31.0,142.59,142.5,8.67487]
[1750731491809,73.64672105,142.59,142.53,3.52672105]
[1750731492003,2.80571392,142.58,142.51,8.67487]
[1750731492309,6.33228019,142.57,142.53,7.0108]
[1750731492607,2.80555914,142.56,142.53,7.0108]
[1750731492807,7.0094,142.56,142.52,7.0112]
[1750731493002,3.52672105,142.57,142.51,8.67487]
[1750731493203,2.80594176,142.56,142.51,8.67487]
[1750731493407,2.80594176,142.55,142.53,7.0106]
[1750731493603,3.52672105,142.57,142.53,7.0106]
[1750731493809,2.80293134,142.56,142.53,7.0106]
[1750731494010,2.80293134,142.55,142.53,7.0106]
[1750731494215,2.80293134,142.54,142.53,7.0106]
[1750731495409,2.80607461,142.54,142.53,7.0106]
[1750731496014,42.64672105,142.59,142.5,8.67487]
[1750731496214,3.5410852,142.57,142.49,8.67487]
[1750731496416,7.0104,142.55,142.49,8.67487]
[1750731496717,2.80623938,142.54,142.49,8.67487]
[1750731497020,39.12,142.55,142.49,8.67487]
[1750731497315,2.80593304,142.54,142.49,8.67487]
[1750731497521,3.5410852,142.53,142.49,8.67487]
[1750731497710,2.80557543,142.52,142.49,7.0124]
[1750731497909,2.80553285,142.51,142.49,7.0124]
[1750731498107,3.5410852,142.53,142.49,7.0124]
[1750731498314,2.80547486,142.52,142.49,7.0124]
[1750731498515,3.5410852,142.53,142.49,7.0124]
[1750731498717,2.80507872,142.52,142.49,7.0124]
[1750731498905,3.5410852,142.53,142.48,7.0131]
[1750731499106,2.80494598,142.52,142.48,7.0131]
[1750731499311,3.5410852,142.53,142.48,7.0131]
[1750731499506,2.80491149,142.52,142.48,7.0131]
[1750731499712,2.80491149,142.51,142.48,7.0131]
[1750731499912,7.0117,142.52,142.48,7.0131]
[1750731500218,7.0124,142.5,142.46,8.67487]
[1750731500416,7.0124,142.5,142.45,8.67487]
[1750731500818,7.0124,142.5,142.46,7.014]
[1750731501609,39.14,142.51,142.44,12.21862298]
[1750731501814,2.80049568,142.5,142.44,12.21862298]
[1750731502018,46.1519,142.51,142.48,7.0133]
[1750731502217,46.1519,142.51,142.44,12.21862298]
[1750731502218,2.80070682,142.5,142.46,3.54375298]
[1750731502418,39.14,142.51,142.46,3.54375298]
[1750731503122,39.14,142.51,142.48,7.013]
[1750731503315,3.54375298,142.49,142.44,8.67487]
[1750731503523,3.54375298,142.49,142.42,19.07442298]
[1750731503716,7.0123,142.5,142.42,15.53067]
[1750731503916,2.79749582,142.49,142.44,3.54375298]
[1750731504118,7.013,142.49,142.44,3.54375298]
[1750731504316,42.68375298,142.51,142.42,10.39955298]
[1750731504624,13.02191337,142.5,142.42,10.39955298]
[1750731504819,7.0137,142.48,142.42,6.8558]
[1750731505021,45.48107486,142.47,142.4,8.67487]
[1750731505226,3.54375298,142.45,142.38,16.94692298]
[1750731505419,46.1554,142.44,142.4,7.0169]
[1750731506218,3.54375298,142.43,142.37,2.4007]
[1750731506419,3.54375298,142.43,142.35,12.21862298]
[1750731506819,3.54375298,142.41,142.35,8.67487]
[1750731507014,42.68375298,142.4,142.32,8.67487]
[1750731507219,39.14,142.4,142.33,5.80115298]
[1750731507631,39.14,142.4,142.33,44.94115298]
[1750731507923,39.14,142.4,142.35,3.54375298]
[1750731508628,39.14,142.4,142.37,7.0183]
[1750731509222,39.14,142.4,142.38,7.0179]
[1750731509424,39.14,142.4,142.33,41.3974]
[1750731509821,39.14,142.4,142.37,7.0184]
[1750731510125,39.14,142.4,142.33,41.3974]
[1750731510325,39.14,142.4,142.34,3.54375298]
[1750731510720,42.68375298,142.4,142.33,2.2574]
[1750731511116,10.56235298,142.38,142.33,2.2574]
[1750731511317,3.54375298,142.38,142.33,2.2574]
[1750731511718,39.14,142.4,142.33,2.2574]
[1750731511925,42.68375298,142.4,142.33,2.2574]
[1750731512523,39.14,142.4,142.33,2.2574]
[1750731512922,39.14,142.4,142.33,5.80115298]
[1750731513122,39.14,142.4,142.36,7.0191]
[1750731513331,3.54375298,142.39,142.33,2.2574]
[1750731513828,39.14,142.4,142.36,7.0192]
[1750731514930,46.1573,142.4,142.36,7.0192]
[1750731515131,39.14,142.4,142.33,2.2574]
[1750731515434,42.68375298,142.4,142.33,2.2574]
[1750731515725,3.54375298,142.38,142.32,4.682]
[1750731515923,39.14,142.4,142.31,3.54375298]
[1750731516120,3.54375298,142.39,142.31,3.54375298]
[1750731517230,3.54375298,142.39,142.3,4.5266]
[1750731517422,42.54375298,142.39,142.32,3.54375298]
[1750731517624,39.0,142.39,142.3,43.5266]
[1750731517825,3.54375298,142.38,142.3,43.5266]
[1750731518019,10.56215298,142.38,142.33,7.0202]
[1750731518222,10.56215298,142.38,142.3,43.5266]
[1750731518223,3.54375298,142.38,142.3,43.5266]
[1750731518421,39.0,142.39,142.31,3.54375298]
[1750731518634,42.54375298,142.39,142.31,3.54375298]
[1750731518931,39.0,142.39,142.33,3.54375298]
[1750731519834,39.0,142.39,142.3,43.5266]
[1750731520026,39.0,142.39,142.33,3.54375298]
[1750731520524,39.0,142.42,142.35,3.54375298]
[1750731521130,7.0174,142.4,142.34,39.0]
[1750731522428,7.0169,142.41,142.34,39.0]
[1750731522633,3.54939965,142.41,142.34,39.0]
[1750731522935,3.54939965,142.41,142.32,3.54939965]
[1750731523138,7.0181,142.39,142.34,7.0201]
[1750731523724,7.0181,142.39,142.35,7.0196]
[1750731523932,7.0174,142.4,142.32,3.54939965]
[1750731524330,7.0174,142.4,142.31,181.34]
[1750731524331,3.54939965,142.39,142.31,39.0]
[1750731524531,39.0,142.38,142.31,39.0]
[1750731525036,7.0191,142.37,142.33,7.0204]
[1750731525232,39.0,142.38,142.31,39.0]
[1750731525537,46.0186,142.38,142.33,7.0203]
[1750731525740,46.0186,142.38,142.31,42.54939965]
[1750731526131,39.0,142.38,142.35,7.0195]
[1750731526830,39.0,142.38,142.31,39.0]
[1750731527032,39.0,142.38,142.32,3.54939965]
[1750731527636,39.0,142.38,142.35,7.0197]
[1750731529438,46.0183,142.38,142.34,7.0202]
[1750731529836,39.0,142.38,142.34,7.0202]
[1750731530034,39.0,142.39,142.31,42.5495041]
[1750731530342,3.5495041,142.4,142.31,42.5495041]
[1750731530639,39.0,142.39,142.33,3.5495041]
[1750731530840,10.5671041,142.4,142.33,3.5495041]
[1750731531040,49.5671041,142.4,142.35,7.0192]
[1750731531440,7.0177,142.39,142.35,7.0192]
[1750731531637,42.5495041,142.4,142.34,7.0201]
[1750731531942,49.5669041,142.4,142.33,3.5495041]
[1750731532241,49.5669041,142.4,142.36,7.0188]
[1750731532434,39.0,142.4,142.33,3.5495041]
[1750731532835,39.0,142.4,142.36,7.0188]
[1750731533554,46.0173,142.4,142.36,7.0188]
[1750731533842,49.5668041,142.4,142.36,7.0188]
[1750731534143,49.5668041,142.4,142.35,7.0195]
[1750731534642,49.5668041,142.4,142.33,3.5495041]
[1750731534843,49.5668041,142.4,142.36,7.0191]
[1750731535844,39.0,142.4,142.28,214.81176622]
[1750731536037,3.5499218,142.39,142.31,3.5499218]
[1750731536233,3.5499218,142.39,142.32,3.5499218]
[1750731536444,7.0185,142.38,142.34,7.0199]
[1750731536936,7.0185,142.38,142.32,3.5499218]
[1750731537143,7.0189,142.37,142.33,7.0205]
[1750731538138,3.5499218,142.39,142.31,3.5499218]
[1750731538645,7.0195,142.36,142.32,7.021]
[1750731539241,7.0197,142.35,142.31,7.0215]
[1750731539445,39.0,142.36,142.31,7.0215]
[1750731540246,39.0,142.36,142.32,7.0211]
[1750731540641,7.02,142.35,142.3,4.7316]
[1750731540842,39.0,142.36,142.31,7.0215]
[1750731541041,39.0,142.36,142.3,4.7316]
[1750731541241,7.0206,142.34,142.3,4.7316]
[1750731541443,7.0206,142.34,142.3,11.7536]
[1750731541744,7.0206,142.34,142.3,4.7316]
[1750731541941,7.0206,142.34,142.31,7.0217]
[1750731542442,3.5499218,142.35,142.29,46.0225]
[1750731542843,7.021,142.33,142.29,7.0225]
[1750731543041,7.021,142.33,142.27,3.5499218]
[1750731543441,7.021,142.33,142.28,3.5499218]
[1750731543646,39.0,142.36,142.28,3.5499218]
[1750731543838,42.5499218,142.36,142.28,3.5499218]
[1750731544141,7.0199,142.35,142.31,7.0215]
[1750731544345,39.0,142.36,142.29,3.5499218]
[1750731544541,39.0,142.36,142.31,3.5499218]
[1750731544848,38.88,142.39,142.32,3.5499218]
[1750731545143,38.88,142.39,142.31,2.2612]
[1750731545446,13.3194159,142.38,142.31,8.1164218]
[1750731545649,10.5683218,142.38,142.31,8.1164218]
[1750731546446,3.5499218,142.38,142.31,8.1164218]
[1750731546946,45.8978,142.39,142.31,8.1164218]
[1750731547144,45.8978,142.39,142.31,6.8704]
[1750731547348,9.76974128,142.38,142.31,5.8111218]
[1750731547647,7.0183,142.38,142.34,7.0199]
[1750731547948,7.9060806,142.37,142.34,7.0199]
[1750731548148,2.75960741,142.36,142.34,7.0199]
[1750731548448,7.0183,142.38,142.34,7.0199]
[1750731548647,7.0183,142.38,142.31,5.8111218]
[1750731548648,2.75978995,142.37,142.35,7.0197]
[1750731548848,45.8979,142.39,142.35,7.0197]
[1750731549049,7.90703043,142.38,142.35,7.0197]
[1750731549240,2.75993626,142.37,142.35,7.0197]
[1750731549440,45.8979,142.39,142.35,7.0197]
[1750731549753,7.90787269,142.38,142.35,7.0197]
[1750731550047,2.76034194,142.37,142.35,7.0197]
[1750731550350,7.0183,142.38,142.35,7.0197]
[1750731550551,7.90929179,142.37,142.35,7.0197]
[1750731550748,2.75992709,142.36,142.35,7.0197]
[1750731551345,45.8978,142.39,142.36,7.0192]
[1750731551650,7.91349123,142.38,142.33,3.5499218]
[1750731551850,2.76346961,142.37,142.31,10.4139218]
[1750731552047,2.76346961,142.36,142.31,10.4139218]
[1750731552344,7.0183,142.38,142.31,10.4139218]
[1750731552550,2.76407851,142.37,142.33,7.0204]
[1750731552854,7.91449867,142.36,142.3,38.88]
[1750731553150,2.76407851,142.35,142.29,3.5499218]
[1750731553452,45.8998,142.35,142.29,3.5499218]
[1750731553849,2.76319302,142.34,142.29,3.5499218]
[1750731554048,38.88,142.35,142.33,7.0204]
[1750731554349,38.88,142.35,142.27,38.88]
[1750731554545,38.88,142.35,142.3,3.5499218]
[1750731554746,38.88,142.35,142.29,3.5499218]
[1750731555051,45.9,142.35,142.29,3.5499218]
[1750731555551,38.88,142.35,142.29,3.5499218]
[1750731555752,38.88,142.35,142.33,7.0204]
[1750731555952,38.88,142.35,142.29,3.5499218]
[1750731557454,38.88,142.35,142.33,7.0203]
[1750731557654,38.88,142.35,142.29,3.5499218]
[1750731558055,38.88,142.35,142.33,7.0204]
[1750731558851,5.6776,142.43,142.31,3.5499218]
[1750731559051,3.5499218,142.38,142.32,38.88]
[1750731559256,2.76558882,142.37,142.3,44.8238218]
[1750731559457,42.4299218,142.38,142.3,44.8238218]
[1750731559647,2.76539269,142.37,142.34,7.0199]
[1750731559852,49.4485218,142.38,142.34,7.0199]
[1750731560151,2.76536115,142.37,142.34,7.0199]
[1750731560350,49.4485218,142.38,142.35,7.0194]
[1750731560351,42.4299218,142.38,142.35,7.0194]
[1750731560558,2.76550283,142.37,142.3,5.9438218]
[1750731560858,2.76550283,142.36,142.3,5.9438218]
[1750731561158,49.4483218,142.38,142.34,7.0201]
[1750731561359,2.76337463,142.37,142.28,3.5499218]
[1750731561557,9.78297463,142.36,142.28,3.5499218]
[1750731561758,2.76310747,142.35,142.26,2.2391]
[1750731561948,45.19302927,142.34,142.26,5.7890218]
[1750731562154,2.76310747,142.33,142.26,5.7890218]
[1750731562349,42.4299218,142.34,142.25,8.4139218]
[1750731562550,7.0216,142.32,142.25,3.5499218]
[1750731563156,7.0217,142.31,142.27,7.0233]
[1750731563857,7.0214,142.32,142.27,7.0233]
[1750731564762,7.0214,142.32,142.28,7.0229]
[1750731566365,7.0214,142.32,142.28,7.0231]
[1750731566565,42.4299218,142.34,142.28,7.0231]
[1750731566767,2.75682639,142.33,142.28,7.0231]
[1750731566963,42.4299218,142.34,142.28,7.0231]
[1750731567267,2.75680823,142.33,142.28,7.0231]
[1750731567560,9.77719992,142.32,142.24,222.36408948]
[1750731567762,3.5499218,142.33,142.24,218.81416768]
[1750731568070,42.4299218,142.34,142.26,3.5499218]
[1750731568367,38.88,142.34,142.26,3.5499218]
[1750731568564,38.88,142.34,142.28,3.5499218]
[1750731569068,38.88,142.4,142.32,3.5499218]
[1750731569264,6.30655832,142.39,142.31,42.4299218]
[1750731569467,2.75663652,142.38,142.31,3.5499218]
[1750731569670,7.0178,142.39,142.33,3.5499218]
[1750731569970,2.75677867,142.38,142.32,10.5707218]